[Event "Titled Tuesday Blitz March 08 Early 2022"]
[White "Talibov, Shiroghlan"]
[Black "Vasquez Schroeder, Rodrigo"]
[WhiteFideId "13429078"]
[BlackFideId "3400042"]
[WhiteElo "2070"]
[BlackElo "2561"]
[Result "1-0"]
[Round "05"]
[TimeControl "180+1"]
[Date "2022.03.08"]
[WhiteClock "0:00:08"]
[BlackClock "0:00:23"]

1. c4 {[%clk 0:03:00]}  c5 {[%clk 0:02:57]} 2. Nc3 {[%clk 0:03:00]}  Nf6 {[%clk 0:02:58]} 3. Nf3 {[%clk 0:03:00]}  e6 {[%clk 0:02:58]} 4. g3 {[%clk 0:02:55]}  b6 {[%clk 0:02:58]} 5. Bg2 {[%clk 0:02:54]}  Bb7 {[%clk 0:02:58]} 6. O-O {[%clk 0:02:54]}  a6 {[%clk 0:02:59]} 7. b3 {[%clk 0:02:51]}  Be7 {[%clk 0:02:58]} 8. Bb2 {[%clk 0:02:51]}  O-O {[%clk 0:02:58]} 9. Rc1 {[%clk 0:02:50]}  d6 {[%clk 0:02:58]} 10. d4 {[%clk 0:02:48]}  cxd4 {[%clk 0:02:58]} 11. Nxd4 {[%clk 0:02:48]}  Bxg2 {[%clk 0:02:56]} 12. Kxg2 {[%clk 0:02:48]}  Qc7 {[%clk 0:02:57]} 13. e3 {[%clk 0:02:48]}  Nbd7 {[%clk 0:02:57]} 14. f4 {[%clk 0:02:36]}  Rab8 {[%clk 0:02:47]} 15. Qf3 {[%clk 0:02:32]}  Rfc8 {[%clk 0:02:48]} 16. Rfd1 {[%clk 0:02:30]}  Nc5 {[%clk 0:02:47]} 17. e4 {[%clk 0:02:30]}  Qb7 {[%clk 0:02:47]} 18. Re1 {[%clk 0:02:25]}  g6 {[%clk 0:02:44]} 19. Rcd1 {[%clk 0:02:19]}  Rc7 {[%clk 0:02:42]} 20. Rd2 {[%clk 0:01:56]}  Rbc8 {[%clk 0:02:40]} 21. Rde2 {[%clk 0:01:56]}  Ncd7 {[%clk 0:02:34]} 22. a4 {[%clk 0:01:51]}  Nc5 {[%clk 0:02:34]} 23. Nd1 {[%clk 0:01:36]}  h5 {[%clk 0:02:16]} 24. Nf2 {[%clk 0:01:35]}  Ncd7 {[%clk 0:02:13]} 25. h3 {[%clk 0:01:33]}  e5 {[%clk 0:02:03]} 26. Nc2 {[%clk 0:01:23]}  b5 {[%clk 0:02:03]} 27. axb5 {[%clk 0:01:24]}  axb5 {[%clk 0:02:03]} 28. Ne3 {[%clk 0:01:24]}  bxc4 {[%clk 0:02:02]} 29. bxc4 {[%clk 0:01:23]}  Qb3 {[%clk 0:01:52]} 30. g4 {[%clk 0:00:57]}  hxg4 {[%clk 0:01:41]} 31. hxg4 {[%clk 0:00:57]}  exf4 {[%clk 0:01:38]} 32. Qxf4 {[%clk 0:00:55]}  Ne5 {[%clk 0:01:38]} 33. Rh1 {[%clk 0:00:48]}  Ne8 {[%clk 0:00:50]} 34. Nd5 {[%clk 0:00:29]}  Bf8 {[%clk 0:00:48]} 35. Rh3 {[%clk 0:00:19]}  Qxc4 {[%clk 0:00:46]} 36. Rd2 {[%clk 0:00:13]}  Rb7 {[%clk 0:00:42]} 37. Rc3 {[%clk 0:00:12]}  Qxc3 {[%clk 0:00:30]} 38. Bxc3 {[%clk 0:00:11]}  Bg7 {[%clk 0:00:31]} 39. g5 {[%clk 0:00:10]}  Ra7 {[%clk 0:00:26]} 40. Bd4 {[%clk 0:00:09]}  Rb7 {[%clk 0:00:26]} 41. Nf6+ {[%clk 0:00:08]}  Nxf6 {[%clk 0:00:24]} 42. gxf6 {[%clk 0:00:08]}  Bf8 {[%clk 0:00:24]} 43. Bxe5 {[%clk 0:00:08]}  dxe5 {[%clk 0:00:25]} 44. Qxe5 {[%clk 0:00:09]}  Rb6 {[%clk 0:00:26]} 45. Qf4 {[%clk 0:00:08]}  Re8 {[%clk 0:00:25]} 46. Ng4 {[%clk 0:00:09]}  Rbe6 {[%clk 0:00:24]} 47. e5 {[%clk 0:00:09]}  Rc8 {[%clk 0:00:23]} 48. Nh6+ {[%clk 0:00:09]}  Kh7 {[%clk 0:00:23]} 49. Nxf7 {[%clk 0:00:09]}  Rc4 {[%clk 0:00:23]} 50. Qxc4 {[%clk 0:00:08]} 1-0


[Site "https://www.chess.com"]

[Event "Titled Tuesday Blitz March 08 Early 2022"]
[White "Tari, Aryan"]
[Black "Kushko, Dmitriy"]
[WhiteFideId "1510045"]
[BlackFideId "14162261"]
[WhiteElo "2567"]
[BlackElo "2225"]
[Result "1-0"]
[Round "05"]
[TimeControl "180+1"]
[Date "2022.03.09"]
[WhiteClock "0:01:19"]
[BlackClock "0:00:04"]

1. d4 {[%clk 0:02:56]}  g6 {[%clk 0:02:58]} 2. h4 {[%clk 0:02:55]}  Nf6 {[%clk 0:02:57]} 3. h5 {[%clk 0:02:50]}  Nxh5 {[%clk 0:02:57]} 4. e4 {[%clk 0:02:51]}  d5 {[%clk 0:02:33]} 5. e5 {[%clk 0:02:50]}  Ng7 {[%clk 0:02:29]} 6. g4 {[%clk 0:02:45]}  h5 {[%clk 0:02:15]} 7. Be2 {[%clk 0:02:43]}  h4 {[%clk 0:01:41]} 8. c3 {[%clk 0:02:42]}  c5 {[%clk 0:01:30]} 9. dxc5 {[%clk 0:02:40]}  Ne6 {[%clk 0:01:29]} 10. Be3 {[%clk 0:02:37]}  Bg7 {[%clk 0:01:24]} 11. f4 {[%clk 0:02:37]}  g5 {[%clk 0:01:22]} 12. f5 {[%clk 0:02:37]}  Nf4 {[%clk 0:01:21]} 13. Bxf4 {[%clk 0:02:37]}  gxf4 {[%clk 0:01:21]} 14. Nf3 {[%clk 0:02:38]}  Nc6 {[%clk 0:01:12]} 15. Qa4 {[%clk 0:02:38]}  Bd7 {[%clk 0:01:06]} 16. Qxf4 {[%clk 0:02:39]}  Qc7 {[%clk 0:01:06]} 17. Na3 {[%clk 0:02:26]}  Nxe5 {[%clk 0:01:05]} 18. Nxe5 {[%clk 0:01:40]}  Bxe5 {[%clk 0:01:01]} 19. Qe3 {[%clk 0:01:40]}  Bg3+ {[%clk 0:00:56]} 20. Kd1 {[%clk 0:01:41]}  Rc8 {[%clk 0:00:52]} 21. Kc2 {[%clk 0:01:40]}  f6 {[%clk 0:00:39]} 22. Nb5 {[%clk 0:01:35]}  Qxc5 {[%clk 0:00:12]} 23. Nd4 {[%clk 0:01:36]}  Qd6 {[%clk 0:00:09]} 24. Rag1 {[%clk 0:01:32]}  Kf7 {[%clk 0:00:08]} 25. Kb1 {[%clk 0:01:25]}  Qe5 {[%clk 0:00:08]} 26. Qd2 {[%clk 0:01:24]}  b5 {[%clk 0:00:07]} 27. Bf3 {[%clk 0:01:21]}  b4 {[%clk 0:00:06]} 28. cxb4 {[%clk 0:01:22]}  Rc4 {[%clk 0:00:05]} 29. Ne2 {[%clk 0:01:22]}  Bc6 {[%clk 0:00:04]} 30. Nxg3 {[%clk 0:01:19]} 1-0


[Site "https://www.chess.com"]

[Event "Titled Tuesday Blitz March 08 Early 2022"]
[White "Vakhlamov, Igor L."]
[Black "Gabdrakhmanov, Azat"]
[WhiteFideId "24126748"]
[BlackFideId "34189197"]
[WhiteElo "2401"]
[BlackElo "2279"]
[Result "1/2-1/2"]
[Round "05"]
[TimeControl "180+1"]
[Date "2022.03.08"]
[WhiteClock "0:00:13"]
[BlackClock "0:00:13"]

1. e4 {[%clk 0:03:00]}  c5 {[%clk 0:03:00]} 2. Nf3 {[%clk 0:02:59]}  e6 {[%clk 0:03:00]} 3. Nc3 {[%clk 0:03:00]}  a6 {[%clk 0:03:00]} 4. g3 {[%clk 0:02:59]}  Nc6 {[%clk 0:03:00]} 5. Bg2 {[%clk 0:03:00]}  Nf6 {[%clk 0:03:00]} 6. O-O {[%clk 0:02:59]}  d6 {[%clk 0:03:00]} 7. d3 {[%clk 0:02:52]}  Be7 {[%clk 0:03:00]} 8. Ng5 {[%clk 0:02:52]}  h6 {[%clk 0:02:52]} 9. Nh3 {[%clk 0:02:51]}  g5 {[%clk 0:02:47]} 10. f4 {[%clk 0:02:51]}  g4 {[%clk 0:02:47]} 11. Nf2 {[%clk 0:02:50]}  h5 {[%clk 0:02:47]} 12. Re1 {[%clk 0:02:46]}  Nd7 {[%clk 0:02:42]} 13. Be3 {[%clk 0:02:33]}  Qc7 {[%clk 0:02:39]} 14. a3 {[%clk 0:02:30]}  b5 {[%clk 0:02:39]} 15. Ne2 {[%clk 0:02:29]}  Bb7 {[%clk 0:02:37]} 16. d4 {[%clk 0:02:29]}  cxd4 {[%clk 0:02:31]} 17. Nxd4 {[%clk 0:02:30]}  Nxd4 {[%clk 0:02:28]} 18. Bxd4 {[%clk 0:02:29]}  e5 {[%clk 0:02:24]} 19. Be3 {[%clk 0:02:22]}  exf4 {[%clk 0:02:20]} 20. Bxf4 {[%clk 0:02:23]}  Ne5 {[%clk 0:02:20]} 21. Nd3 {[%clk 0:02:20]}  h4 {[%clk 0:02:14]} 22. Nxe5 {[%clk 0:02:01]}  dxe5 {[%clk 0:02:12]} 23. Be3 {[%clk 0:02:01]}  h3 {[%clk 0:01:51]} 24. Bf1 {[%clk 0:01:56]}  f5 {[%clk 0:01:47]} 25. Bd3 {[%clk 0:01:39]}  O-O-O {[%clk 0:01:33]} 26. Qc1 {[%clk 0:01:35]}  Bc5 {[%clk 0:01:14]} 27. a4 {[%clk 0:01:17]}  f4 {[%clk 0:01:11]} 28. Bxc5 {[%clk 0:01:16]}  Qxc5+ {[%clk 0:01:10]} 29. Kh1 {[%clk 0:01:16]}  fxg3 {[%clk 0:00:47]} 30. hxg3 {[%clk 0:01:17]}  Qf2 {[%clk 0:00:46]} 31. Rg1 {[%clk 0:01:04]}  Qf3+ {[%clk 0:00:29]} 32. Kh2 {[%clk 0:01:04]}  Bxe4 {[%clk 0:00:27]} 33. Qe1 {[%clk 0:00:51]}  Bxd3 {[%clk 0:00:13]} 34. cxd3 {[%clk 0:00:52]}  Qxd3 {[%clk 0:00:12]} 35. Rc1+ {[%clk 0:00:49]}  Kb7 {[%clk 0:00:12]} 36. axb5 {[%clk 0:00:48]}  Qd2+ {[%clk 0:00:12]} 37. Kh1 {[%clk 0:00:48]}  Qd5+ {[%clk 0:00:12]} 38. Kh2 {[%clk 0:00:48]}  Qd2+ {[%clk 0:00:12]} 39. Kh1 {[%clk 0:00:48]}  Qxe1 {[%clk 0:00:13]} 40. Rgxe1 {[%clk 0:00:49]}  axb5 {[%clk 0:00:14]} 41. Rxe5 {[%clk 0:00:49]}  Rd2 {[%clk 0:00:14]} 42. Rxb5+ {[%clk 0:00:48]}  Ka6 {[%clk 0:00:14]} 43. Rb4 {[%clk 0:00:44]}  Rh5 {[%clk 0:00:12]} 44. Ra1+ {[%clk 0:00:23]}  Ra5 {[%clk 0:00:11]} 45. Rxa5+ {[%clk 0:00:23]}  Kxa5 {[%clk 0:00:12]} 46. Rxg4 {[%clk 0:00:24]}  Rxb2 {[%clk 0:00:10]} 47. Rh4 {[%clk 0:00:24]}  Kb5 {[%clk 0:00:11]} 48. Rxh3 {[%clk 0:00:20]}  Kc5 {[%clk 0:00:11]} 49. Rh2 {[%clk 0:00:21]}  Rb1+ {[%clk 0:00:10]} 50. Kg2 {[%clk 0:00:21]}  Kd5 {[%clk 0:00:10]} 51. Kf3 {[%clk 0:00:20]}  Ke6 {[%clk 0:00:11]} 52. Kg4 {[%clk 0:00:19]}  Kf6 {[%clk 0:00:11]} 53. Rh6+ {[%clk 0:00:18]}  Kg7 {[%clk 0:00:12]} 54. Re6 {[%clk 0:00:18]}  Rb5 {[%clk 0:00:11]} 55. Re4 {[%clk 0:00:18]}  Kf6 {[%clk 0:00:11]} 56. Rf4+ {[%clk 0:00:18]}  Kg6 {[%clk 0:00:11]} 57. Ra4 {[%clk 0:00:19]}  Rb6 {[%clk 0:00:12]} 58. Kh4 {[%clk 0:00:18]}  Rc6 {[%clk 0:00:12]} 59. Rg4+ {[%clk 0:00:19]}  Kh6 {[%clk 0:00:11]} 60. Rb4 {[%clk 0:00:20]}  Rd6 {[%clk 0:00:11]} 61. Rb5 {[%clk 0:00:20]}  Kg6 {[%clk 0:00:12]} 62. Rg5+ {[%clk 0:00:20]}  Kh6 {[%clk 0:00:12]} 63. Rh5+ {[%clk 0:00:20]}  Kg6 {[%clk 0:00:13]} 64. g4 {[%clk 0:00:21]}  Rc6 {[%clk 0:00:12]} 65. Ra5 {[%clk 0:00:22]}  Rb6 {[%clk 0:00:12]} 66. Kg3 {[%clk 0:00:21]}  Rc6 {[%clk 0:00:12]} 67. Ra4 {[%clk 0:00:21]}  Rb6 {[%clk 0:00:12]} 68. Kf4 {[%clk 0:00:21]}  Rc6 {[%clk 0:00:13]} 69. Re4 {[%clk 0:00:20]}  Rf6+ {[%clk 0:00:13]} 70. Kg3 {[%clk 0:00:21]}  Ra6 {[%clk 0:00:13]} 71. Kh4 {[%clk 0:00:21]}  Rb6 {[%clk 0:00:14]} 72. Re5 {[%clk 0:00:21]}  Ra6 {[%clk 0:00:14]} 73. Rg5+ {[%clk 0:00:21]}  Kh6 {[%clk 0:00:14]} 74. Rg8 {[%clk 0:00:22]}  Rb6 {[%clk 0:00:13]} 75. Kg3 {[%clk 0:00:18]}  Kh7 {[%clk 0:00:13]} 76. Rg5 {[%clk 0:00:17]}  Kh6 {[%clk 0:00:13]} 77. Re5 {[%clk 0:00:13]}  Kg6 {[%clk 0:00:12]} 78. Kh4 {[%clk 0:00:13]}  Kf6 {[%clk 0:00:12]} 79. Rg5 {[%clk 0:00:12]}  Rb1 {[%clk 0:00:10]} 80. Rg8 {[%clk 0:00:10]}  Rh1+ {[%clk 0:00:09]} 81. Kg3 {[%clk 0:00:11]}  Rg1+ {[%clk 0:00:09]} 82. Kf2 {[%clk 0:00:11]}  Ra1 {[%clk 0:00:09]} 83. Kf3 {[%clk 0:00:12]}  Rf1+ {[%clk 0:00:09]} 84. Ke2 {[%clk 0:00:11]}  Ra1 {[%clk 0:00:08]} 85. Ke3 {[%clk 0:00:11]}  Re1+ {[%clk 0:00:08]} 86. Kf2 {[%clk 0:00:11]}  Ra1 {[%clk 0:00:08]} 87. Kg2 {[%clk 0:00:08]}  Kf7 {[%clk 0:00:07]} 88. Rg5 {[%clk 0:00:08]}  Kf6 {[%clk 0:00:08]} 89. Rb5 {[%clk 0:00:08]}  Ra3 {[%clk 0:00:07]} 90. Rf5+ {[%clk 0:00:08]}  Kg6 {[%clk 0:00:07]} 91. Kf2 {[%clk 0:00:08]}  Rb3 {[%clk 0:00:07]} 92. Rf3 {[%clk 0:00:08]}  Rb2+ {[%clk 0:00:07]} 93. Kg3 {[%clk 0:00:08]}  Rb6 {[%clk 0:00:08]} 94. Ra3 {[%clk 0:00:09]}  Rc6 {[%clk 0:00:08]} 95. Kh4 {[%clk 0:00:08]}  Rd6 {[%clk 0:00:09]} 96. Ra5 {[%clk 0:00:08]}  Rc6 {[%clk 0:00:09]} 97. Rg5+ {[%clk 0:00:09]}  Kh6 {[%clk 0:00:10]} 98. Rh5+ {[%clk 0:00:10]}  Kg6 {[%clk 0:00:10]} 99. Rh8 {[%clk 0:00:10]}  Kg7 {[%clk 0:00:10]} 100. Ra8 {[%clk 0:00:10]}  Kg6 {[%clk 0:00:11]} 101. Ra5 {[%clk 0:00:10]}  Rd6 {[%clk 0:00:11]} 102. Rg5+ {[%clk 0:00:11]}  Kh6 {[%clk 0:00:11]} 103. Rf5 {[%clk 0:00:11]}  Kg6 {[%clk 0:00:11]} 104. Rf4 {[%clk 0:00:11]}  Rc6 {[%clk 0:00:12]} 105. Re4 {[%clk 0:00:11]}  Rb6 {[%clk 0:00:12]} 106. Rd4 {[%clk 0:00:12]}  Rc6 {[%clk 0:00:12]} 107. Rd5 {[%clk 0:00:12]}  Rb6 {[%clk 0:00:12]} 108. Rg5+ {[%clk 0:00:12]}  Kh6 {[%clk 0:00:13]} 109. Rg8 {[%clk 0:00:13]}  Kh7 {[%clk 0:00:13]} 110. Rf8 {[%clk 0:00:12]}  Kg6 {[%clk 0:00:13]} 111. Rf5 {[%clk 0:00:12]}  Rc6 {[%clk 0:00:13]} 112. Rg5+ {[%clk 0:00:13]}  Kh6 {[%clk 0:00:14]} 113. Rg8 {[%clk 0:00:12]}  Kh7 {[%clk 0:00:13]} 114. Ra8 {[%clk 0:00:13]} 1/2-1/2


[Site "https://www.chess.com"]

[Event "Titled Tuesday Blitz March 08 Early 2022"]
[White "Vifleemskaia, Svetlana"]
[Black "Lauridsen, Jesper Morch"]
[WhiteFideId "4129490"]
[BlackFideId "1401890"]
[WhiteElo "1901"]
[BlackElo "2261"]
[Result "1-0"]
[Round "05"]
[TimeControl "180+1"]
[Date "2022.03.09"]
[WhiteClock "0:00:16"]
[BlackClock "0:00:11"]

1. d4 {[%clk 0:02:50]}  Nf6 {[%clk 0:02:58]} 2. c4 {[%clk 0:02:49]}  e6 {[%clk 0:02:58]} 3. Nc3 {[%clk 0:02:50]}  Bb4 {[%clk 0:02:58]} 4. e3 {[%clk 0:02:49]}  d5 {[%clk 0:02:57]} 5. Ne2 {[%clk 0:02:48]}  O-O {[%clk 0:02:53]} 6. cxd5 {[%clk 0:02:47]}  exd5 {[%clk 0:02:52]} 7. Ng3 {[%clk 0:02:48]}  Re8 {[%clk 0:02:48]} 8. Bd3 {[%clk 0:02:39]}  c5 {[%clk 0:02:47]} 9. O-O {[%clk 0:02:39]}  c4 {[%clk 0:02:30]} 10. Bc2 {[%clk 0:02:37]}  Nc6 {[%clk 0:02:29]} 11. a3 {[%clk 0:02:33]}  Bd6 {[%clk 0:02:25]} 12. Nf5 {[%clk 0:02:25]}  Bxf5 {[%clk 0:02:16]} 13. Bxf5 {[%clk 0:02:21]}  Ne7 {[%clk 0:02:17]} 14. Bc2 {[%clk 0:02:19]}  Ng6 {[%clk 0:02:08]} 15. f4 {[%clk 0:02:17]}  Ne4 {[%clk 0:01:59]} 16. Bxe4 {[%clk 0:02:12]}  dxe4 {[%clk 0:01:58]} 17. f5 {[%clk 0:02:12]}  Ne7 {[%clk 0:01:53]} 18. f6 {[%clk 0:01:54]}  Ng6 {[%clk 0:01:51]} 19. Qe2 {[%clk 0:01:47]}  gxf6 {[%clk 0:01:46]} 20. Qxc4 {[%clk 0:01:43]}  Rc8 {[%clk 0:01:39]} 21. Qb5 {[%clk 0:01:42]}  Bb8 {[%clk 0:01:31]} 22. Qh5 {[%clk 0:01:37]}  Kg7 {[%clk 0:01:20]} 23. Bd2 {[%clk 0:01:37]}  Rc6 {[%clk 0:01:06]} 24. Rad1 {[%clk 0:01:35]}  a6 {[%clk 0:01:02]} 25. Ne2 {[%clk 0:01:26]}  Rc2 {[%clk 0:00:56]} 26. Bc3 {[%clk 0:01:26]}  Qd6 {[%clk 0:00:53]} 27. Ng3 {[%clk 0:01:22]}  Kh8 {[%clk 0:00:42]} 28. Nf5 {[%clk 0:01:19]}  Qf8 {[%clk 0:00:39]} 29. Rde1 {[%clk 0:01:13]}  Qg8 {[%clk 0:00:38]} 30. Re2 {[%clk 0:00:58]}  Rxe2 {[%clk 0:00:32]} 31. Qxe2 {[%clk 0:00:59]}  Ne7 {[%clk 0:00:29]} 32. Nxe7 {[%clk 0:00:49]}  Rxe7 {[%clk 0:00:29]} 33. Rxf6 {[%clk 0:00:45]}  Qg5 {[%clk 0:00:28]} 34. Qf2 {[%clk 0:00:39]}  Kg7 {[%clk 0:00:28]} 35. Rf5 {[%clk 0:00:37]}  Qg6 {[%clk 0:00:27]} 36. d5+ {[%clk 0:00:35]}  Kg8 {[%clk 0:00:26]} 37. Qh4 {[%clk 0:00:22]}  Kf8 {[%clk 0:00:20]} 38. Bb4 {[%clk 0:00:18]}  Bd6 {[%clk 0:00:17]} 39. Rg5 {[%clk 0:00:17]}  Bxh2+ {[%clk 0:00:11]} 40. Kxh2 {[%clk 0:00:16]}  Qf6 {[%clk 0:00:11]} 41. Rg8+ {[%clk 0:00:16]} 1-0


[Site "https://www.chess.com"]

[Event "Titled Tuesday Blitz March 08 Early 2022"]
[White "Voit, Daria"]
[Black "Kosakowski, Jakub"]
[WhiteFideId "4182146"]
[BlackFideId "1185080"]
[WhiteElo "2323"]
[BlackElo "2476"]
[Result "1-0"]
[Round "05"]
[TimeControl "180+1"]
[Date "2022.03.09"]
[WhiteClock "0:00:17"]
[BlackClock "0:00:03"]

1. d4 {[%clk 0:02:58]}  Nf6 {[%clk 0:02:52]} 2. Bg5 {[%clk 0:02:55]}  d5 {[%clk 0:02:49]} 3. Bxf6 {[%clk 0:02:53]}  gxf6 {[%clk 0:02:49]} 4. c4 {[%clk 0:02:52]}  dxc4 {[%clk 0:02:12]} 5. e3 {[%clk 0:02:39]}  c5 {[%clk 0:02:10]} 6. Qa4+ {[%clk 0:02:30]}  Nc6 {[%clk 0:02:07]} 7. dxc5 {[%clk 0:02:29]}  Rg8 {[%clk 0:01:44]} 8. Nc3 {[%clk 0:02:17]}  Bd7 {[%clk 0:01:35]} 9. Qxc4 {[%clk 0:02:09]}  Ne5 {[%clk 0:01:34]} 10. Qh4 {[%clk 0:02:07]}  Bc6 {[%clk 0:01:21]} 11. f3 {[%clk 0:01:52]}  Nd3+ {[%clk 0:01:16]} 12. Bxd3 {[%clk 0:01:47]}  Qxd3 {[%clk 0:01:17]} 13. Kf2 {[%clk 0:01:47]}  e6 {[%clk 0:01:12]} 14. Rd1 {[%clk 0:01:23]}  Qg6 {[%clk 0:01:08]} 15. g3 {[%clk 0:01:18]}  Qf5 {[%clk 0:01:00]} 16. b4 {[%clk 0:01:10]}  a5 {[%clk 0:00:23]} 17. b5 {[%clk 0:01:10]}  Bd7 {[%clk 0:00:24]} 18. Qd4 {[%clk 0:01:02]}  e5 {[%clk 0:00:19]} 19. Qd5 {[%clk 0:00:57]}  Qe6 {[%clk 0:00:16]} 20. Qxb7 {[%clk 0:00:54]}  Rd8 {[%clk 0:00:16]} 21. Nd5 {[%clk 0:00:31]}  Qf5 {[%clk 0:00:10]} 22. e4 {[%clk 0:00:28]}  Bxc5+ {[%clk 0:00:10]} 23. Kg2 {[%clk 0:00:26]}  Qg6 {[%clk 0:00:08]} 24. Qc7 {[%clk 0:00:18]}  Bd4 {[%clk 0:00:08]} 25. b6 {[%clk 0:00:18]}  Qh5 {[%clk 0:00:03]} 26. Nxf6+ {[%clk 0:00:17]} 1-0


[Site "https://www.chess.com"]

[Event "Titled Tuesday Blitz March 08 Early 2022"]
[White "Yandarbiev, Ruslan"]
[Black "Tologon tegin, Semetei"]
[WhiteFideId "4115023"]
[BlackFideId "13800574"]
[WhiteElo "2102"]
[BlackElo "2258"]
[Result "1-0"]
[Round "05"]
[TimeControl "180+1"]
[Date "2022.03.09"]
[WhiteClock "0:00:52"]
[BlackClock "0:00:32"]

1. e4 {[%clk 0:03:00]}  e5 {[%clk 0:02:58]} 2. Nf3 {[%clk 0:03:00]}  Nc6 {[%clk 0:02:58]} 3. Bb5 {[%clk 0:03:01]}  a6 {[%clk 0:02:58]} 4. Ba4 {[%clk 0:03:02]}  Nf6 {[%clk 0:02:58]} 5. O-O {[%clk 0:03:02]}  Be7 {[%clk 0:02:58]} 6. Bxc6 {[%clk 0:03:03]}  dxc6 {[%clk 0:02:58]} 7. d3 {[%clk 0:03:04]}  Bg4 {[%clk 0:02:56]} 8. Nbd2 {[%clk 0:03:05]}  O-O {[%clk 0:02:56]} 9. h3 {[%clk 0:03:05]}  Bxf3 {[%clk 0:02:52]} 10. Nxf3 {[%clk 0:03:06]}  Nd7 {[%clk 0:02:52]} 11. Bd2 {[%clk 0:03:05]}  Bc5 {[%clk 0:02:51]} 12. Bc3 {[%clk 0:03:04]}  Qe7 {[%clk 0:02:51]} 13. Re1 {[%clk 0:03:01]}  Rad8 {[%clk 0:02:50]} 14. Qe2 {[%clk 0:02:52]}  Rfe8 {[%clk 0:02:50]} 15. Rad1 {[%clk 0:02:51]}  f6 {[%clk 0:02:48]} 16. d4 {[%clk 0:02:49]}  exd4 {[%clk 0:02:47]} 17. Nxd4 {[%clk 0:02:50]}  Qf7 {[%clk 0:02:37]} 18. Nf5 {[%clk 0:02:37]}  Nf8 {[%clk 0:02:17]} 19. b3 {[%clk 0:02:08]}  Ng6 {[%clk 0:02:14]} 20. Qg4 {[%clk 0:02:06]}  Kh8 {[%clk 0:02:11]} 21. h4 {[%clk 0:02:06]}  Rxd1 {[%clk 0:01:54]} 22. Rxd1 {[%clk 0:02:07]}  Ne5 {[%clk 0:01:29]} 23. Bxe5 {[%clk 0:01:56]}  fxe5 {[%clk 0:01:27]} 24. h5 {[%clk 0:01:56]}  g6 {[%clk 0:01:26]} 25. hxg6 {[%clk 0:01:52]}  Qxg6 {[%clk 0:01:24]} 26. Qh3 {[%clk 0:01:42]}  Qe6 {[%clk 0:01:17]} 27. Rd3 {[%clk 0:01:35]}  Rf8 {[%clk 0:00:54]} 28. Rg3 {[%clk 0:01:28]}  Rf7 {[%clk 0:00:43]} 29. Qg4 {[%clk 0:01:21]}  Qe8 {[%clk 0:00:42]} 30. Qh5 {[%clk 0:01:13]}  Qf8 {[%clk 0:00:41]} 31. Kh1 {[%clk 0:01:01]}  Rd7 {[%clk 0:00:41]} 32. Nh6 {[%clk 0:00:55]}  Rg7 {[%clk 0:00:34]} 33. Qxe5 {[%clk 0:00:55]}  Bxf2 {[%clk 0:00:32]} 34. Rxg7 {[%clk 0:00:53]}  Qxg7 {[%clk 0:00:32]} 35. Qe8+ {[%clk 0:00:52]} 1-0


[Site "https://www.chess.com"]

[Event "Titled Tuesday Blitz March 08 Early 2022"]
[White "Yang, Kaiqi"]
[Black "San, Thit Lwin"]
[WhiteFideId "8604398"]
[BlackFideId "13001272"]
[WhiteElo "2373"]
[BlackElo "2232"]
[Result "1-0"]
[Round "05"]
[TimeControl "180+1"]
[Date "2022.03.09"]
[WhiteClock "0:00:18"]
[BlackClock "0:00:10"]

1. e4 {[%clk 0:03:00]}  Nf6 {[%clk 0:03:00]} 2. e5 {[%clk 0:02:59]}  Nd5 {[%clk 0:03:01]} 3. d4 {[%clk 0:03:00]}  d6 {[%clk 0:03:01]} 4. Nf3 {[%clk 0:03:01]}  Bg4 {[%clk 0:03:01]} 5. Be2 {[%clk 0:03:00]}  e6 {[%clk 0:03:01]} 6. O-O {[%clk 0:03:00]}  Be7 {[%clk 0:03:01]} 7. exd6 {[%clk 0:02:53]}  cxd6 {[%clk 0:03:01]} 8. h3 {[%clk 0:02:50]}  Bh5 {[%clk 0:03:00]} 9. Nbd2 {[%clk 0:02:42]}  O-O {[%clk 0:02:57]} 10. Ne4 {[%clk 0:02:39]}  Nc6 {[%clk 0:02:48]} 11. c3 {[%clk 0:02:32]}  Rc8 {[%clk 0:02:46]} 12. Re1 {[%clk 0:02:31]}  a6 {[%clk 0:02:40]} 13. Ng3 {[%clk 0:02:26]}  Bg6 {[%clk 0:02:39]} 14. Bd3 {[%clk 0:02:26]}  b5 {[%clk 0:02:35]} 15. Bxg6 {[%clk 0:02:25]}  hxg6 {[%clk 0:02:35]} 16. a4 {[%clk 0:02:22]}  Nb6 {[%clk 0:02:32]} 17. axb5 {[%clk 0:02:20]}  axb5 {[%clk 0:02:32]} 18. Qd3 {[%clk 0:02:20]}  b4 {[%clk 0:02:26]} 19. c4 {[%clk 0:02:13]}  Bf6 {[%clk 0:02:15]} 20. Ne4 {[%clk 0:02:10]}  d5 {[%clk 0:01:53]} 21. Nxf6+ {[%clk 0:02:09]}  gxf6 {[%clk 0:01:53]} 22. c5 {[%clk 0:02:08]}  Nd7 {[%clk 0:01:43]} 23. Bf4 {[%clk 0:02:02]}  Kg7 {[%clk 0:01:41]} 24. Bd6 {[%clk 0:01:53]}  Re8 {[%clk 0:01:39]} 25. Ra6 {[%clk 0:01:52]}  Ndb8 {[%clk 0:01:34]} 26. Rb6 {[%clk 0:01:42]}  Nd7 {[%clk 0:01:00]} 27. Rb7 {[%clk 0:01:38]}  Ra8 {[%clk 0:00:58]} 28. Qb5 {[%clk 0:01:33]}  Ndb8 {[%clk 0:00:47]} 29. b3 {[%clk 0:01:12]}  Na5 {[%clk 0:00:39]} 30. Rxb8 {[%clk 0:00:46]}  Rxb8 {[%clk 0:00:38]} 31. Bxb8 {[%clk 0:00:42]}  Nxb3 {[%clk 0:00:37]} 32. Bd6 {[%clk 0:00:36]}  Na5 {[%clk 0:00:34]} 33. Bc7 {[%clk 0:00:31]}  Qxc7 {[%clk 0:00:27]} 34. Qxe8 {[%clk 0:00:31]}  Nc4 {[%clk 0:00:23]} 35. Qb5 {[%clk 0:00:28]}  Qf4 {[%clk 0:00:19]} 36. Qxb4 {[%clk 0:00:24]}  g5 {[%clk 0:00:19]} 37. c6 {[%clk 0:00:20]}  g4 {[%clk 0:00:16]} 38. hxg4 {[%clk 0:00:20]}  Qxg4 {[%clk 0:00:15]} 39. c7 {[%clk 0:00:20]}  e5 {[%clk 0:00:14]} 40. Qb8 {[%clk 0:00:18]}  e4 {[%clk 0:00:10]} 41. c8=Q {[%clk 0:00:18]}  Qxc8 {[%clk 0:00:10]} 42. Qxc8 {[%clk 0:00:18]} 1-0


[Site "https://www.chess.com"]